bitfinex/quotes_BTCUSD_20250224
["timestamp","ask_amount","ask_price","bid_price","bid_amount"]
[1740393889682,2.79181343,95678.0,95677.0,1.7468128]
[1740393893553,2.79181343,95678.0,95677.0,1.7470188]
[1740393894717,2.79181343,95678.0,95677.0,1.7270188]
[1740393895111,2.79266253,95678.0,95677.0,1.7470188]
[1740393896061,2.79266253,95678.0,95677.0,1.7375388]
[1740393896214,2.79266253,95678.0,95677.0,1.7470188]
[1740393896795,2.79266253,95678.0,95677.0,1.7270188]
[1740393897196,2.79266253,95678.0,95677.0,1.75009224]
[1740393897403,2.79266253,95678.0,95677.0,1.7270188]
[1740393898245,2.79266253,95678.0,95677.0,1.7070188]
[1740393898445,2.79266253,95678.0,95677.0,1.7270188]
[1740393898746,2.79266253,95678.0,95677.0,1.4922188]
[1740393900454,2.79266253,95678.0,95677.0,1.4350388]
[1740393900662,2.79266253,95678.0,95677.0,1.31331796]
[1740393902202,2.79266253,95678.0,95677.0,0.61031796]
[1740393902598,2.79266253,95678.0,95677.0,0.61731796]
[1740393902798,2.79266253,95678.0,95677.0,0.76031796]
[1740393903019,2.79266253,95678.0,95677.0,0.75331796]
[1740393903253,2.79266253,95678.0,95677.0,0.76031796]
[1740393903401,2.79266253,95678.0,95677.0,0.76731796]
[1740393903601,2.79266253,95678.0,95677.0,0.76031796]
[1740393903807,2.79266253,95678.0,95677.0,0.76731796]
[1740393907606,2.79266253,95678.0,95677.0,0.61731796]
[1740393909523,2.79266253,95678.0,95677.0,0.46054096]
[1740393914085,2.8246819,95678.0,95677.0,0.46054096]
[1740393914290,2.79266253,95678.0,95677.0,0.46054096]
[1740393914613,2.94943753,95678.0,95677.0,0.43994989]
[1740393915362,2.94943753,95678.0,95677.0,0.43294989]
[1740393915584,2.9825013,95678.0,95677.0,0.43294989]
[1740393915769,2.79266253,95678.0,95677.0,0.43294989]
[1740393915950,2.79266253,95678.0,95677.0,0.43994989]
[1740393916149,2.79266253,95678.0,95677.0,0.43294989]
[1740393916534,2.79266253,95678.0,95677.0,0.43994989]
[1740393917869,2.79266253,95678.0,95677.0,0.11854989]
[1740393918475,2.94943753,95678.0,95677.0,0.11854989]
[1740393919732,3.02793753,95678.0,95677.0,0.11854989]
[1740393921303,3.02793753,95678.0,95677.0,0.11154989]
[1740393921750,3.02793753,95678.0,95677.0,0.11854989]
[1740393921927,3.02793753,95678.0,95677.0,0.11154989]
[1740393922230,3.02793753,95678.0,95677.0,0.11854989]
[1740393924814,3.02793753,95678.0,95677.0,0.11863058]
[1740393932933,2.77843358,95678.0,95677.0,0.01598489]
[1740393934979,2.77843358,95678.0,95677.0,0.11863058]
[1740393935211,2.62165858,95678.0,95677.0,0.11863058]
[1740393935647,2.62165858,95678.0,95677.0,0.27540758]
[1740393937597,2.62165858,95678.0,95677.0,0.26840758]
[1740393938196,2.62165858,95678.0,95677.0,0.27540758]
[1740393938413,2.62165858,95678.0,95677.0,0.26140758]
[1740393938842,2.62165858,95678.0,95677.0,0.27540758]
[1740393939268,2.62165858,95678.0,95677.0,0.26840758]
[1740393940625,2.62165858,95678.0,95677.0,0.28884765]
[1740393941714,2.62165858,95678.0,95677.0,0.61024765]
[1740393941923,2.62165858,95678.0,95677.0,0.60324765]
[1740393942125,2.62165858,95678.0,95677.0,0.61024765]
[1740393942260,2.62165858,95678.0,95677.0,0.61724765]
[1740393944166,2.62165858,95678.0,95677.0,0.60324765]
[1740393944385,2.6210229,95678.0,95677.0,0.61724765]
[1740393945536,2.6210229,95678.0,95677.0,0.61024765]
[1740393946987,2.6210229,95678.0,95677.0,0.63857907]
[1740393947330,2.6210229,95678.0,95677.0,0.92727907]
[1740393948099,2.6210229,95678.0,95677.0,0.92027907]
[1740393948372,2.6210229,95678.0,95677.0,0.91327907]
[1740393948595,2.6210229,95678.0,95677.0,0.92027907]
[1740393948936,2.6210229,95678.0,95677.0,0.92727907]
[1740393949317,2.6210229,95678.0,95677.0,0.92027907]
[1740393949838,2.6210229,95678.0,95677.0,0.92727907]
[1740393950241,2.6210229,95678.0,95677.0,0.92027907]
[1740393950782,2.6210229,95678.0,95677.0,0.92727907]
[1740393953576,2.6210229,95678.0,95677.0,1.03757907]
[1740393953726,2.6210229,95678.0,95677.0,0.92727907]
[1740393959990,2.6210229,95678.0,95677.0,0.94685657]
[1740393965255,2.6210229,95678.0,95677.0,0.92727907]
[1740393968262,2.6210229,95678.0,95677.0,0.9468733]
[1740393969604,2.6210229,95678.0,95677.0,0.92727907]
[1740393972078,2.6210229,95678.0,95677.0,0.89894765]
[1740393973110,2.6210229,95678.0,95677.0,0.91854643]
[1740393973552,2.6210229,95678.0,95677.0,1.05724038]
[1740393973800,2.6210229,95678.0,95677.0,0.94694038]
[1740393974373,2.6210229,95678.0,95677.0,1.49294038]
[1740393975847,2.6210229,95678.0,95677.0,1.46454643]
[1740393976054,2.6210229,95678.0,95677.0,1.28817065]
[1740393976259,2.6210229,95678.0,95677.0,1.15647065]
[1740393976463,2.6210229,95678.0,95677.0,1.00647065]
[1740393977418,2.6210229,95678.0,95677.0,0.99947065]
[1740393977622,2.6210229,95678.0,95677.0,1.00647065]
[1740393978387,2.6210229,95678.0,95677.0,0.98603058]
[1740393978388,2.7777979,95678.0,95677.0,0.98603058]
[1740393978585,2.6210229,95678.0,95677.0,0.98603058]
[1740393978952,2.6210229,95678.0,95677.0,1.14280758]
[1740393979155,2.6210229,95678.0,95677.0,0.97903058]
[1740393979357,2.6210229,95678.0,95677.0,1.13580758]
[1740393979675,2.6210229,95678.0,95677.0,1.14280758]
[1740393980441,2.6210229,95678.0,95677.0,0.74680758]
[1740393980642,2.6210229,95678.0,95677.0,0.78134843]
[1740393980845,2.6210229,95678.0,95677.0,0.86224843]
[1740393980978,2.6210229,95678.0,95677.0,0.89491514]
[1740393982319,2.6210229,95678.0,95677.0,0.88791514]
[1740393982569,2.6210229,95678.0,95677.0,0.88091514]
[1740393982770,2.6210229,95678.0,95677.0,0.88791514]
[1740393982927,2.6210229,95678.0,95677.0,0.89491514]
[1740393983126,2.6210229,95678.0,95677.0,1.44091514]
[1740393983339,2.6210229,95678.0,95677.0,1.49762779]
[1740393983868,2.6210229,95678.0,95677.0,1.49310779]
[1740393984068,2.6210229,95678.0,95677.0,1.49062779]
[1740393984278,2.6210229,95678.0,95677.0,1.48710779]
[1740393984498,2.6210229,95678.0,95677.0,1.43990023]
[1740393984702,2.6210229,95678.0,95677.0,1.42518758]
[1740393985871,2.6210229,95678.0,95677.0,1.43218758]
[1740393986367,2.6210229,95678.0,95677.0,1.41818758]
[1740393986729,2.6210229,95678.0,95677.0,1.43218758]
[1740393986944,2.6210229,95678.0,95677.0,1.42518758]
[1740393987099,2.6210229,95678.0,95677.0,1.43218758]
[1740393988367,2.6210229,95678.0,95677.0,1.42270758]
[1740393994879,2.62076161,95678.0,95677.0,1.42270758]
[1740393998688,2.62076161,95678.0,95677.0,1.45732163]
[1740394002751,2.62076161,95678.0,95677.0,1.17064463]
[1740394002953,2.62076161,95678.0,95677.0,1.16737442]
[1740394003175,2.62076161,95678.0,95677.0,1.01737442]
[1740394003515,2.62076161,95678.0,95677.0,0.47137442]
[1740394003647,2.62076161,95678.0,95677.0,0.43303058]
[1740394003847,2.62076161,95678.0,95677.0,0.42603058]
[1740394004319,2.62076161,95678.0,95677.0,0.43303058]
[1740394004528,2.62076161,95678.0,95677.0,0.58980758]
[1740394004703,2.62076161,95678.0,95677.0,0.66960758]
[1740394005148,2.62076161,95678.0,95677.0,0.67660758]
[1740394007045,2.62076161,95678.0,95677.0,0.82660758]
[1740394013138,2.45231008,95678.0,95677.0,0.82660758]
[1740394021897,2.45231008,95678.0,95677.0,0.44003058]
[1740394029553,2.45231008,95678.0,95677.0,0.44003058]
[1740394030177,2.45231008,95678.0,95677.0,0.59680758]
[1740394030382,2.45231008,95678.0,95677.0,0.44003058]
[1740394030584,2.45231008,95678.0,95677.0,0.59680758]
[1740394030790,2.45231008,95678.0,95677.0,0.72460758]
[1740394031106,2.45231008,95678.0,95677.0,0.90914843]
[1740394031638,2.45231008,95678.0,95677.0,1.48781524]
[1740394031858,2.45231008,95678.0,95677.0,1.48081524]
[1740394032483,2.45231008,95678.0,95677.0,1.48781524]
[1740394032690,1.54216808,95678.0,95677.0,1.48781524]
[1740394032949,0.93629407,95678.0,95677.0,1.45514843]
[1740394033171,0.93629407,95678.0,95677.0,1.44814843]
[1740394033368,0.78933125,95678.0,95677.0,1.47514843]
[1740394033575,0.0016994,95689.0,95688.0,0.46919985]
[1740394033784,0.0016994,95689.0,95688.0,0.57184554]
[1740394034010,0.0016994,95689.0,95688.0,0.57965657]
[1740394034220,0.0016994,95689.0,95688.0,1.46705657]
[1740394035057,0.0016994,95689.0,95688.0,1.48105657]
[1740394035533,0.0016994,95689.0,95688.0,1.47405657]
[1740394036775,0.0016994,95689.0,95688.0,1.48105657]
[1740394037013,0.00160715,95689.0,95688.0,1.48105657]
[1740394037848,1.5e-07,95689.0,95688.0,2.51639204]
[1740394038022,0.09954223,95749.0,95705.0,0.458431]
[1740394038230,0.00095333,95706.0,95705.0,0.58509754]
[1740394039186,0.00095333,95706.0,95705.0,0.58836624]
[1740394039856,0.00095333,95706.0,95705.0,0.57888624]
[1740394040145,0.00095333,95706.0,95705.0,0.58836624]
[1740394040274,0.00095333,95706.0,95705.0,0.59536624]
[1740394040681,0.00095333,95706.0,95705.0,0.59288624]
[1740394040887,0.00095333,95706.0,95705.0,0.60236624]
[1740394041508,0.00095333,95706.0,95705.0,0.58836624]
[1740394041884,0.00095333,95706.0,95705.0,0.60236624]
[1740394042774,0.00095333,95706.0,95705.0,1.46976624]
[1740394043429,0.00095333,95706.0,95705.0,1.46649754]
[1740394043633,0.0008494,95745.0,95728.0,0.176693]
[1740394043824,0.00044968,95729.0,95728.0,1.54746145]
[1740394044025,0.00044968,95729.0,95728.0,1.62609954]
[1740394044453,0.00044968,95729.0,95728.0,1.6511649]
[1740394044582,0.00044968,95729.0,95728.0,1.67257521]
[1740394044974,0.00044968,95729.0,95728.0,1.68284296]
[1740394045468,0.00044968,95729.0,95728.0,1.67336296]
[1740394045672,0.00044968,95729.0,95728.0,1.68284296]
[1740394046677,0.00044968,95729.0,95728.0,1.67957521]
[1740394047340,0.00044968,95729.0,95728.0,1.68657521]
[1740394047742,0.00044968,95729.0,95728.0,1.67257521]
[1740394048000,0.00044968,95729.0,95728.0,1.67957521]
[1740394048141,0.00044968,95729.0,95728.0,1.68657521]
[1740394048326,0.00044968,95729.0,95728.0,1.67957521]
[1740394048522,0.00044968,95729.0,95728.0,1.68657521]
[1740394048727,0.00044968,95729.0,95728.0,1.67957521]
[1740394049130,0.00044968,95729.0,95728.0,1.68657521]
[1740394050172,0.00044968,95729.0,95728.0,1.67957521]
[1740394050508,0.00044968,95729.0,95728.0,1.68657521]
[1740394050911,0.00044968,95729.0,95728.0,1.70091861]
[1740394051125,0.00044968,95729.0,95728.0,1.70791861]
[1740394051625,0.00044968,95729.0,95728.0,1.71118644]
[1740394052521,0.00044968,95729.0,95728.0,1.70170644]
[1740394052724,0.00044968,95729.0,95728.0,1.71118644]
[1740394053104,0.00044968,95729.0,95728.0,1.70791861]
[1740394053553,0.00044968,95729.0,95728.0,1.81821861]
[1740394053732,0.00044968,95729.0,95728.0,1.70791861]
[1740394055637,6.8e-07,95729.0,95728.0,1.70791861]
[1740394055864,6.8e-07,95729.0,95728.0,1.75351861]
[1740394056282,6.8e-07,95729.0,95728.0,1.77351861]
[1740394056892,6.8e-07,95729.0,95728.0,1.7767864]
[1740394058337,6.8e-07,95729.0,95728.0,1.7567864]
[1740394063405,6.8e-07,95729.0,95728.0,1.78920644]
[1740394063754,6.8e-07,95729.0,95728.0,1.7567864]
[1740394064279,0.0008494,95745.0,95744.0,0.403867]
[1740394064578,0.0008494,95745.0,95744.0,0.52105354]
[1740394065891,0.0008494,95745.0,95744.0,0.52805354]
[1740394066119,0.0008494,95745.0,95744.0,0.53132133]
[1740394066432,0.0008494,95745.0,95744.0,1.39872133]
[1740394066882,0.0008494,95745.0,95744.0,1.40572133]
[1740394067272,0.0008494,95745.0,95744.0,1.41520133]
[1740394068626,0.0008494,95745.0,95744.0,1.33800133]
[1740394069256,0.0008494,95745.0,95744.0,1.37053802]
[1740394070404,0.0008494,95745.0,95744.0,1.39146381]
[1740394071411,0.0008494,95745.0,95744.0,1.38819602]
[1740394074409,0.0008494,95745.0,95744.0,1.36819602]
[1740394074818,0.0008494,95745.0,95744.0,1.38819602]
[1740394077065,0.0008494,95745.0,95744.0,1.37871602]
[1740394077318,0.0008494,95745.0,95744.0,1.38819602]
[1740394078260,0.0008494,95745.0,95744.0,0.84219602]
[1740394079325,0.0008494,95745.0,95744.0,0.96489602]
[1740394079984,0.0008494,95745.0,95744.0,0.96816362]
[1740394080191,0.0008494,95745.0,95744.0,0.96116362]
[1740394080394,0.0008494,95745.0,95744.0,0.95868362]
[1740394080508,0.0008494,95745.0,95744.0,0.81598362]
[1740394080986,0.0008494,95745.0,95744.0,0.82546362]
[1740394081236,0.000849,95751.0,95750.0,0.306657]
[1740394081449,0.000849,95751.0,95750.0,0.45638023]
[1740394082069,0.000849,95751.0,95750.0,0.46586023]
[1740394082291,0.000849,95751.0,95750.0,0.45131938]
[1740394082800,0.000849,95751.0,95750.0,0.53671938]
[1740394082978,0.000849,95751.0,95750.0,0.60331938]
[1740394083195,0.000849,95751.0,95750.0,1.47071938]
[1740394083362,1e-06,95751.0,95750.0,1.48526023]
[1740394083884,0.00075778,95762.0,95761.0,0.0984]
[1740394084084,0.00075778,95762.0,95761.0,0.54022138]
[1740394084085,0.00118995,95762.0,95761.0,0.54022138]
[1740394084284,0.00118995,95762.0,95761.0,0.58682138]
[1740394085019,0.00118995,95762.0,95761.0,0.59382138]
[1740394085242,0.00118995,95762.0,95761.0,0.58682138]
[1740394085400,0.00118995,95762.0,95761.0,1.47671976]
[1740394085595,0.00118995,95762.0,95761.0,1.48371976]
[1740394086702,0.00118995,95762.0,95761.0,2.51890344]
[1740394087464,0.00118995,95762.0,95761.0,2.52590344]
[1740394088001,1e-08,95762.0,95761.0,2.54590344]
[1740394088771,1e-08,95762.0,95761.0,2.55008544]
[1740394089950,0.0004,95769.0,95768.0,0.46856885]
[1740394089951,1e-08,95769.0,95768.0,0.46856885]
[1740394090156,0.00012961,95769.0,95768.0,1.47115123]
[1740394091201,0.00012961,95769.0,95768.0,1.48515123]
[1740394091410,0.00012961,95769.0,95768.0,1.49467123]
[1740394094924,0.00012961,95769.0,95768.0,0.62727123]
[1740394095405,0.00012961,95769.0,95768.0,0.62723123]
[1740394097476,0.0008497,95785.0,95773.0,0.32662]
[1740394097651,0.0008497,95785.0,95773.0,0.54250238]
[1740394098626,0.0008497,95785.0,95773.0,0.77706238]
[1740394099453,0.0008497,95785.0,95773.0,0.84520323]
[1740394100311,0.0008497,95785.0,95773.0,0.85220323]
[1740394100547,7e-07,95774.0,95773.0,0.85220323]
[1740394100771,7e-07,95774.0,95773.0,0.83820323]
[1740394100973,7e-07,95774.0,95773.0,0.87873179]
[1740394101265,0.0008497,95785.0,95784.0,0.451502]
[1740394101398,0.0008497,95785.0,95784.0,0.60122523]
[1740394101609,0.0008497,95785.0,95784.0,0.55020438]
[1740394101809,0.0008497,95785.0,95784.0,0.51766769]
[1740394102010,0.0008497,95785.0,95784.0,0.52268854]
[1740394102232,0.0008497,95785.0,95784.0,0.53220854]
[1740394102497,0.0008497,95785.0,95784.0,0.55364976]
[1740394102803,0.0008497,95785.0,95784.0,0.45068891]
[1740394103011,0.0008497,95785.0,95784.0,0.29060691]
[1740394103124,0.0008497,95785.0,95784.0,0.13108691]
[1740394103526,0.0008497,95785.0,95784.0,0.28108691]
[1740394103769,0.0008497,95785.0,95784.0,0.44468891]
[1740394103970,0.0008497,95785.0,95784.0,0.42324769]
[1740394104147,0.0008497,95785.0,95784.0,0.41624769]
[1740394104359,0.0008497,95785.0,95784.0,0.43791824]
[1740394104563,0.0008497,95785.0,95784.0,0.46743824]
[1740394104769,0.0008497,95785.0,95784.0,0.53717909]
[1740394105223,0.0008497,95785.0,95784.0,0.59399226]
[1740394105726,0.0008497,95785.0,95784.0,0.60099226]
[1740394105924,0.0008497,95785.0,95784.0,0.59147226]
[1740394106122,0.0008497,95785.0,95784.0,0.56854409]
[1740394106360,0.0008497,95785.0,95784.0,0.50580324]
[1740394106550,0.0008497,95785.0,95784.0,0.49880324]
[1740394106749,0.0008497,95785.0,95784.0,0.48580324]
[1740394106951,0.0008497,95785.0,95784.0,0.46928324]
[1740394107159,0.0008497,95785.0,95784.0,0.48580324]
[1740394107303,0.0008497,95785.0,95784.0,0.49922292]
[1740394107753,0.0008497,95785.0,95784.0,0.50622292]
[1740394108112,0.0008497,95785.0,95784.0,0.49922292]
[1740394109688,0.0008497,95785.0,95784.0,0.50622292]
[1740394111099,0.0008497,95785.0,95784.0,0.52919116]
[1740394111300,0.0008497,95785.0,95784.0,0.53871116]
[1740394111499,0.0008497,95785.0,95784.0,0.52919116]
[1740394111709,0.0008497,95785.0,95784.0,0.53867116]
[1740394113301,0.0008497,95785.0,95784.0,0.55867116]
[1740394113703,0.0008497,95785.0,95784.0,0.52730616]
[1740394117823,0.0008497,95785.0,95784.0,0.50730616]
[1740394118231,0.0008497,95785.0,95784.0,0.49782616]
[1740394118405,0.0008497,95785.0,95784.0,0.50730616]
[1740394119797,0.0008497,95785.0,95784.0,0.49782616]
[1740394119971,0.0008497,95785.0,95784.0,0.35070416]
[1740394120151,0.0008497,95785.0,95784.0,0.50730616]
[1740394121484,0.208748,95809.0,95788.0,0.15]
[1740394121690,0.15669055,95809.0,95808.0,0.10264569]
[1740394123539,0.15669055,95809.0,95808.0,0.10964569]
[1740394124455,0.15669055,95809.0,95808.0,0.11664569]
[1740394125601,0.20399055,95809.0,95808.0,0.11664569]
[1740394129833,0.20399055,95809.0,95808.0,0.10964569]
[1740394130323,0.20399055,95809.0,95808.0,0.11664569]
[1740394130824,0.20399055,95809.0,95808.0,0.10964569]
[1740394130961,0.20399055,95809.0,95808.0,0.11664569]
[1740394131361,0.20399055,95809.0,95808.0,0.10964569]
[1740394131574,0.20399055,95809.0,95808.0,0.11664569]
[1740394131972,0.20399055,95809.0,95808.0,0.10964569]
[1740394132177,0.20399055,95809.0,95808.0,0.11664569]
[1740394133796,0.20399055,95809.0,95808.0,0.11834309]
[1740394134239,0.20399055,95809.0,95808.0,0.11134309]
[1740394134651,0.20399055,95809.0,95808.0,0.10434309]
[1740394134969,0.20399055,95809.0,95808.0,0.11034309]
[1740394135517,0.20399055,95809.0,95808.0,0.10434309]
[1740394135716,0.35399055,95809.0,95808.0,9e-08]
[1740394135915,0.35399055,95809.0,95808.0,0.00600009]
[1740394136159,0.35399055,95809.0,95808.0,0.006]
[1740394136538,0.35399055,95809.0,95808.0,0.013]
[1740394137541,0.35399055,95809.0,95808.0,0.006]
[1740394137802,0.208769,95800.0,95774.0,0.02291297]
[1740394137997,0.04742955,95809.0,95779.0,0.10264569]
[1740394137998,0.156608,95781.0,95779.0,0.10264569]
[1740394138202,0.156608,95780.0,95779.0,0.10264569]
[1740394139240,0.156608,95780.0,95779.0,0.10964569]
[1740394139382,0.156608,95780.0,95779.0,0.10264569]
[1740394139589,0.157608,95780.0,95779.0,0.10964569]
[1740394139790,0.157608,95780.0,95779.0,0.11664569]
[1740394140653,0.001,95780.0,95779.0,0.11664569]
[1740394141502,0.001,95780.0,95779.0,0.39915569]
[1740394142218,0.001,95780.0,95779.0,0.54915569]
[1740394143029,0.2182232,95800.0,95781.0,0.0753]
[1740394143230,0.3747992,95800.0,95799.0,0.17794569]
[1740394143459,0.156576,95800.0,95799.0,0.10264569]
[1740394145935,0.156576,95800.0,95799.0,0.11664569]
[1740394146142,0.156576,95800.0,95799.0,0.10964569]
[1740394146342,0.156576,95800.0,95799.0,0.11664569]
[1740394146542,0.156576,95800.0,95799.0,0.10964569]
[1740394146758,0.156576,95800.0,95799.0,0.11134309]
[1740394146935,0.156576,95800.0,95799.0,0.11834309]
[1740394155144,0.202176,95800.0,95799.0,0.11834309]
[1740394156311,0.202176,95800.0,95799.0,0.10434309]
[1740394156482,0.202176,95800.0,95799.0,0.11034309]
[1740394156687,0.202176,95800.0,95799.0,0.11634309]
[1740394156899,0.202176,95800.0,95799.0,0.11034309]
[1740394158064,0.202176,95800.0,95799.0,0.11634309]
[1740394161261,0.202176,95800.0,95799.0,0.0136974]
[1740394161726,0.202176,95800.0,95799.0,4e-07]
[1740394163473,0.202176,95800.0,95799.0,0.10264609]
[1740394163672,0.156576,95800.0,95799.0,0.10264609]
[1740394163873,0.00012955,95806.0,95799.0,0.10264609]
[1740394164074,0.208757,95805.0,95800.0,0.10264569]
[1740394164302,0.208759,95804.0,95800.0,0.10264569]
[1740394164517,0.156574,95801.0,95800.0,0.10264569]
[1740394165297,0.156574,95801.0,95800.0,0.10964569]
[1740394165627,0.156574,95801.0,95800.0,0.10264569]
[1740394166044,0.157574,95801.0,95800.0,0.10964569]
[1740394167562,0.158574,95801.0,95800.0,0.11664569]
[1740394171464,0.002,95801.0,95800.0,0.19204569]
[1740394172240,0.002,95801.0,95800.0,0.24164569]
[1740394172648,0.002,95801.0,95800.0,0.39822169]
[1740394172843,0.002,95801.0,95800.0,0.24164569]
[1740394173793,0.001,95801.0,95800.0,0.39122169]
[1740394173996,0.001,95801.0,95800.0,0.39822169]
[1740394174375,0.00012955,95806.0,95801.0,0.0804]
[1740394174585,0.00012955,95806.0,95805.0,0.33961369]
[1740394174785,0.00012955,95806.0,95805.0,0.38461369]
[1740394175826,0.00012955,95806.0,95805.0,0.39161369]
[1740394176069,0.00012955,95806.0,95805.0,0.38461369]
[1740394176866,0.00012955,95806.0,95805.0,0.39161369]
[1740394177021,0.00012955,95806.0,95805.0,0.39861369]
[1740394177643,0.00012955,95806.0,95805.0,0.86301369]
[1740394177839,0.00012955,95806.0,95805.0,0.87001369]
[1740394178251,0.00012955,95806.0,95805.0,0.88455454]
[1740394179493,0.00012955,95806.0,95805.0,0.87755454]
[1740394179900,0.00012955,95806.0,95805.0,0.88455454]
[1740394180507,0.0008487,95808.0,95807.0,0.44750485]
[1740394180686,0.0008487,95808.0,95807.0,0.55015054]
[1740394181730,0.0008487,95808.0,95807.0,0.55715054]
[1740394182151,0.0008487,95808.0,95807.0,1.42455054]
[1740394182786,0.0008487,95808.0,95807.0,1.43155054]
[1740394183780,0.0008487,95808.0,95807.0,1.42455054]
[1740394184279,0.0008487,95808.0,95807.0,1.44455054]
[1740394184480,0.0008487,95808.0,95807.0,1.45155054]
[1740394184681,0.0008487,95808.0,95807.0,1.44455054]
[1740394184924,0.0008487,95808.0,95807.0,1.48401454]
[1740394185097,0.0008487,95808.0,95807.0,1.45155054]
[1740394185303,0.0008487,95808.0,95807.0,1.46099054]
[1740394185504,0.0008495,95825.0,95807.0,1.46099054]
[1740394185505,0.0008495,95825.0,95824.0,0.1552819]
[1740394185708,0.0008495,95825.0,95824.0,0.39846844]
[1740394186104,0.0008495,95825.0,95824.0,0.40790844]
[1740394186862,0.0008495,95825.0,95824.0,0.41490844]
[1740394187269,0.0008495,95825.0,95824.0,0.42190844]
[1740394191162,0.0008495,95825.0,95824.0,0.74330844]
[1740394191319,0.0008495,95825.0,95824.0,0.76368502]
[1740394192201,0.0008495,95825.0,95824.0,0.59896312]
[1740394192409,0.0008495,95825.0,95824.0,0.75549912]
[1740394192746,0.0008495,95825.0,95824.0,0.60840312]
[1740394193502,0.0008495,95825.0,95824.0,0.59386227]
[1740394194351,0.0008495,95825.0,95824.0,0.58442227]
[1740394195416,0.0008495,95825.0,95824.0,0.58611927]
[1740394196575,0.0008495,95825.0,95824.0,0.53841927]
[1740394196810,0.1573845,95825.0,95824.0,0.53841927]
[1740394199624,0.1573845,95825.0,95824.0,0.46011927]
[1740394200367,0.0008495,95825.0,95824.0,0.13871927]
[1740394200969,0.1573845,95825.0,95824.0,0.11834269]
[1740394201872,0.2041845,95825.0,95824.0,0.11834269]
[1740394202521,0.2041845,95825.0,95824.0,0.11134269]
[1740394202913,0.2041845,95825.0,95824.0,0.10434269]
[1740394203116,0.2041845,95825.0,95824.0,0.11634269]
[1740394203246,0.2023845,95825.0,95824.0,0.11634269]
[1740394209885,0.2023845,95825.0,95824.0,0.013697]
[1740394215575,0.1573845,95825.0,95824.0,0.11634269]
[1740394221518,0.2182232,95840.0,95824.0,0.11634269]
[1740394221717,0.00012953,95840.0,95830.0,0.0767]
[1740394221933,0.21835273,95840.0,95831.0,0.10264569]
[1740394222131,0.156519,95835.0,95831.0,0.10264569]
[1740394222334,0.156522,95833.0,95831.0,0.10264569]
[1740394222553,0.156523,95832.0,95831.0,0.10264569]
[1740394222750,0.00012953,95840.0,95831.0,0.10264569]
[1740394222996,0.00012953,95840.0,95837.0,0.10264569]
[1740394223207,0.156512,95839.0,95838.0,0.1245]
[1740394223374,0.156512,95839.0,95838.0,0.22714569]
[1740394223578,0.00012953,95840.0,95838.0,0.22714569]
[1740394223783,0.00012953,95840.0,95839.0,0.10264569]
[1740394225577,0.00012953,95840.0,95839.0,0.10964569]
[1740394226434,0.15663953,95840.0,95839.0,0.10964569]
[1740394226641,0.15663953,95840.0,95839.0,0.11664569]
[1740394231151,0.15748923,95840.0,95839.0,0.11664569]
[1740394242766,0.15748923,95840.0,95839.0,0.11834489]
[1740394247910,0.17124667,95842.0,95839.0,0.11834489]
[1740394248117,0.15651,95840.0,95839.0,0.11834489]
[1740394248769,0.15651,95840.0,95839.0,0.11134489]
[1740394249290,0.15651,95840.0,95839.0,0.11834489]
[1740394249618,0.15651,95840.0,95839.0,0.11134489]
[1740394249830,0.15651,95840.0,95839.0,0.11834489]
[1740394251135,0.15651,95840.0,95839.0,0.0156992]
[1740394252113,0.15651,95840.0,95839.0,0.0086992]
[1740394252324,0.15651,95840.0,95839.0,0.0146992]
[1740394252550,0.15651,95840.0,95839.0,0.0076992]
[1740394252791,0.15651,95840.0,95839.0,0.0096992]
[1740394252984,0.15651,95840.0,95839.0,0.0036992]
[1740394253126,0.15651,95840.0,95839.0,0.0056992]
[1740394257720,0.15651,95840.0,95839.0,0.10834489]
[1740394258087,0.17220885,95842.0,95839.0,0.10834489]
[1740394258088,0.00096218,95842.0,95839.0,0.10834489]
[1740394258287,0.156509,95841.0,95840.0,0.10264569]
[1740394258507,0.156509,95841.0,95840.0,0.18474569]
[1740394259303,0.156509,95841.0,95840.0,0.18674569]
[1740394260028,0.156509,95841.0,95840.0,0.19374569]
[1740394260231,0.156509,95841.0,95840.0,0.19174569]
[1740394260628,0.156509,95841.0,95840.0,0.19874569]
[1740394263720,0.00096218,95842.0,95840.0,0.19874569]
[1740394263991,0.15747018,95842.0,95841.0,0.0454]
[1740394264174,0.15747018,95842.0,95841.0,0.14804569]
[1740394266513,0.15747018,95842.0,95841.0,0.15404569]
[1740394266756,0.15747018,95842.0,95841.0,0.16004569]
[1740394268241,0.15747018,95842.0,95841.0,0.15404569]
[1740394268545,0.15747018,95842.0,95841.0,0.16104569]
[1740394269180,0.15747018,95842.0,95841.0,0.15504569]
[1740394269373,0.15747018,95842.0,95841.0,0.16204569]
[1740394271119,0.15747018,95842.0,95841.0,0.11664569]
[1740394279037,0.15747018,95842.0,95841.0,0.19644569]
[1740394281329,0.00096218,95842.0,95841.0,0.19644569]
[1740394282594,0.15746918,95842.0,95841.0,0.19644569]
[1740394284498,0.00096218,95842.0,95841.0,0.19644569]
[1740394290731,0.00096218,95842.0,95841.0,0.24734489]
[1740394292723,0.15746918,95842.0,95841.0,0.24734489]
[1740394292935,0.00096218,95842.0,95841.0,0.24734489]
[1740394300220,0.00096218,95842.0,95841.0,0.40385389]
[1740394301053,0.00096218,95842.0,95841.0,0.72769389]
[1740394301420,0.00096218,95842.0,95841.0,0.73469389]
[1740394302884,0.00096218,95842.0,95841.0,0.72769389]
[1740394303029,0.00096218,95842.0,95841.0,0.73469389]
[1740394303230,0.00096218,95842.0,95841.0,0.72069389]
[1740394303657,0.00096218,95842.0,95841.0,0.73469389]
[1740394303859,0.00096218,95842.0,95841.0,0.57818489]
[1740394305480,0.00096218,95842.0,95841.0,0.73469389]
[1740394307328,0.00096218,95842.0,95841.0,0.57818489]
[1740394307710,0.00096218,95842.0,95841.0,0.73469389]
[1740394309132,0.00096218,95842.0,95841.0,0.57818489]
[1740394310118,0.00096218,95842.0,95841.0,0.73469389]
[1740394310323,0.00096218,95842.0,95841.0,0.57818489]
[1740394311082,0.00096218,95842.0,95841.0,0.56874489]
[1740394319187,0.00096218,95842.0,95841.0,0.72525389]
[1740394319380,0.00096218,95842.0,95841.0,0.56874489]
[1740394320547,0.00096218,95842.0,95841.0,0.72525389]
[1740394323705,0.00096218,95842.0,95841.0,0.56874489]
[1740394323911,0.00096218,95842.0,95841.0,0.72525389]
[1740394327818,0.00096218,95842.0,95841.0,0.73469389]
[1740394330485,0.00096218,95842.0,95841.0,0.72069389]
[1740394330647,0.00096218,95842.0,95841.0,0.72769389]
[1740394330846,0.00096218,95842.0,95841.0,0.73469389]
[1740394331069,0.00096218,95842.0,95841.0,0.72769389]
[1740394331308,0.00096218,95842.0,95841.0,0.72069389]
[1740394331737,0.00096218,95842.0,95841.0,0.72769389]
[1740394332353,0.00096218,95842.0,95841.0,0.73469389]
[1740394332768,0.00096218,95842.0,95841.0,0.72525389]
[1740394332975,0.00096218,95842.0,95841.0,0.56874489]
[1740394333391,0.00096218,95842.0,95841.0,0.51954489]
[1740394333598,0.15746918,95842.0,95841.0,0.43974489]